[Event "Titled Tuesday Blitz April 4 Early 2023"]
[White "Francisco Guecamburu, Candela Be"]
[Black "Flores, Diego"]
[WhiteFideId "160911"]
[BlackFideId "108049"]
[WhiteElo "2326"]
[BlackElo "2613"]
[Result "0-1"]
[Round "02"]
[TimeControl "180+2"]
[Date "2023.04.04"]
[WhiteClock "0:00:32"]
[BlackClock "0:00:53"]

1. e4 {[%clk 0:03:00]}  d6 {[%clk 0:03:00]} 2. d4 {[%clk 0:03:01]}  Nf6 {[%clk 0:03:00]} 3. Nc3 {[%clk 0:03:01]}  c6 {[%clk 0:03:01]} 4. Be3 {[%clk 0:03:00]}  b5 {[%clk 0:02:57]} 5. Bd3 {[%clk 0:02:57]}  e5 {[%clk 0:02:56]} 6. Nf3 {[%clk 0:02:52]}  Nbd7 {[%clk 0:02:54]} 7. h3 {[%clk 0:02:47]}  Be7 {[%clk 0:02:54]} 8. O-O {[%clk 0:02:45]}  a6 {[%clk 0:02:54]} 9. a4 {[%clk 0:02:43]}  Bb7 {[%clk 0:02:54]} 10. axb5 {[%clk 0:02:35]}  axb5 {[%clk 0:02:54]} 11. Rxa8 {[%clk 0:02:30]}  Qxa8 {[%clk 0:02:54]} 12. dxe5 {[%clk 0:02:23]}  dxe5 {[%clk 0:02:54]} 13. Nh4 {[%clk 0:01:58]}  g6 {[%clk 0:02:53]} 14. Nf3 {[%clk 0:01:35]}  O-O {[%clk 0:02:53]} 15. Bh6 {[%clk 0:01:33]}  Re8 {[%clk 0:02:52]} 16. Qe2 {[%clk 0:01:32]}  Bf8 {[%clk 0:02:40]} 17. Bg5 {[%clk 0:01:16]}  Bg7 {[%clk 0:02:38]} 18. Nd1 {[%clk 0:01:15]}  Nc5 {[%clk 0:02:38]} 19. Bxf6 {[%clk 0:01:14]}  Bxf6 {[%clk 0:02:37]} 20. Ne3 {[%clk 0:01:14]}  Ne6 {[%clk 0:02:38]} 21. g3 {[%clk 0:01:13]}  Bg7 {[%clk 0:02:37]} 22. h4 {[%clk 0:01:13]}  h5 {[%clk 0:02:36]} 23. Ng5 {[%clk 0:01:08]}  Nxg5 {[%clk 0:02:26]} 24. hxg5 {[%clk 0:01:09]}  Qd8 {[%clk 0:02:26]} 25. Ra1 {[%clk 0:01:06]}  Qxg5 {[%clk 0:02:24]} 26. Ra7 {[%clk 0:01:06]}  Re7 {[%clk 0:02:24]} 27. c4 {[%clk 0:00:57]}  b4 {[%clk 0:01:35]} 28. c5 {[%clk 0:00:56]}  Kh7 {[%clk 0:01:35]} 29. Nc4 {[%clk 0:00:50]}  Bc8 {[%clk 0:01:34]} 30. Rxe7 {[%clk 0:00:41]}  Qxe7 {[%clk 0:01:34]} 31. Nd6 {[%clk 0:00:42]}  Bg4 {[%clk 0:01:26]} 32. Qd2 {[%clk 0:00:36]}  Qa7 {[%clk 0:00:52]} 33. Qxb4 {[%clk 0:00:35]}  Qa1+ {[%clk 0:00:52]} 34. Kg2 {[%clk 0:00:32]}  Qd1 {[%clk 0:00:53]} 0-1


[Site "https://www.chess.com"]

[Event "Titled Tuesday Blitz April 4 Early 2023"]
[White "Oleksiyenko, Mykhaylo"]
[Black "Mortazavi, Ali"]
[WhiteFideId "4152417"]
[BlackFideId "401323"]
[WhiteElo "2551"]
[BlackElo "2339"]
[Result "1-0"]
[Round "02"]
[TimeControl "180+2"]
[Date "2023.04.04"]
[WhiteClock "0:00:21"]
[BlackClock "0:00:13"]

1. e4 {[%clk 0:03:00]}  c6 {[%clk 0:02:59]} 2. Nf3 {[%clk 0:02:55]}  d5 {[%clk 0:02:59]} 3. Nc3 {[%clk 0:02:56]}  dxe4 {[%clk 0:02:59]} 4. Nxe4 {[%clk 0:02:57]}  Nf6 {[%clk 0:02:59]} 5. Nxf6+ {[%clk 0:02:57]}  exf6 {[%clk 0:02:59]} 6. Bc4 {[%clk 0:02:58]}  Bd6 {[%clk 0:02:59]} 7. Qe2+ {[%clk 0:02:58]}  Be7 {[%clk 0:02:59]} 8. O-O {[%clk 0:02:57]}  O-O {[%clk 0:03:00]} 9. Re1 {[%clk 0:02:56]}  Bd6 {[%clk 0:03:01]} 10. d4 {[%clk 0:02:53]}  Na6 {[%clk 0:03:00]} 11. a3 {[%clk 0:02:24]}  Nc7 {[%clk 0:02:51]} 12. h3 {[%clk 0:02:24]}  Re8 {[%clk 0:02:44]} 13. Qf1 {[%clk 0:02:22]}  Bf5 {[%clk 0:02:35]} 14. Rxe8+ {[%clk 0:02:20]}  Qxe8 {[%clk 0:02:34]} 15. Bd3 {[%clk 0:02:20]}  Bg6 {[%clk 0:02:31]} 16. Bxg6 {[%clk 0:02:18]}  hxg6 {[%clk 0:02:31]} 17. c4 {[%clk 0:02:18]}  Qe4 {[%clk 0:02:19]} 18. Be3 {[%clk 0:02:11]}  Qc2 {[%clk 0:02:10]} 19. Qc1 {[%clk 0:02:10]}  Qe4 {[%clk 0:01:59]} 20. Qb1 {[%clk 0:02:09]}  Qe6 {[%clk 0:01:57]} 21. Qd3 {[%clk 0:02:08]}  Rd8 {[%clk 0:01:52]} 22. Rc1 {[%clk 0:02:06]}  Bf8 {[%clk 0:01:50]} 23. Qb3 {[%clk 0:02:03]}  b5 {[%clk 0:01:38]} 24. Qc2 {[%clk 0:01:31]}  bxc4 {[%clk 0:01:35]} 25. Qxc4 {[%clk 0:01:31]}  Nd5 {[%clk 0:01:35]} 26. Qxc6 {[%clk 0:01:27]}  Rd6 {[%clk 0:01:35]} 27. Qc8 {[%clk 0:01:22]}  Nxe3 {[%clk 0:01:19]} 28. Qxe6 {[%clk 0:01:19]}  Rxe6 {[%clk 0:01:18]} 29. fxe3 {[%clk 0:01:20]}  Rxe3 {[%clk 0:01:19]} 30. Kf2 {[%clk 0:00:53]}  Rb3 {[%clk 0:01:18]} 31. Rc2 {[%clk 0:00:53]}  g5 {[%clk 0:01:18]} 32. Nd2 {[%clk 0:00:53]}  Rb7 {[%clk 0:00:51]} 33. b4 {[%clk 0:00:52]}  g6 {[%clk 0:00:51]} 34. Rc8 {[%clk 0:00:47]}  Kg7 {[%clk 0:00:50]} 35. Nc4 {[%clk 0:00:47]}  Rd7 {[%clk 0:00:44]} 36. Ke3 {[%clk 0:00:47]}  f5 {[%clk 0:00:42]} 37. b5 {[%clk 0:00:45]}  Be7 {[%clk 0:00:34]} 38. Ne5 {[%clk 0:00:37]}  Rb7 {[%clk 0:00:34]} 39. a4 {[%clk 0:00:35]}  Bf6 {[%clk 0:00:32]} 40. Nc6 {[%clk 0:00:33]}  Rd7 {[%clk 0:00:32]} 41. Ra8 {[%clk 0:00:29]}  f4+ {[%clk 0:00:27]} 42. Ke4 {[%clk 0:00:28]}  Rd6 {[%clk 0:00:22]} 43. Rxa7 {[%clk 0:00:27]}  Re6+ {[%clk 0:00:17]} 44. Kd3 {[%clk 0:00:26]}  Re3+ {[%clk 0:00:17]} 45. Kc4 {[%clk 0:00:26]}  Rg3 {[%clk 0:00:17]} 46. b6 {[%clk 0:00:26]}  Rxg2 {[%clk 0:00:15]} 47. b7 {[%clk 0:00:24]}  Rb2 {[%clk 0:00:15]} 48. b8=Q {[%clk 0:00:24]}  Rxb8 {[%clk 0:00:15]} 49. Nxb8 {[%clk 0:00:25]}  Bd8 {[%clk 0:00:14]} 50. Nc6 {[%clk 0:00:23]}  f3 {[%clk 0:00:13]} 51. Nxd8 {[%clk 0:00:21]} 1-0


[Site "https://www.chess.com"]

[Event "Titled Tuesday Blitz April 4 Early 2023"]
[White "Papasimakopoulos, Alexandros"]
[Black "Hirneise, Jens"]
[WhiteFideId "4244125"]
[BlackFideId "24614734"]
[WhiteElo "2359"]
[BlackElo "2345"]
[Result "1/2-1/2"]
[Round "02"]
[TimeControl "180+2"]
[Date "2023.04.04"]
[WhiteClock "0:00:26"]
[BlackClock "0:01:10"]

1. d4 {[%clk 0:03:00]}  Nf6 {[%clk 0:02:55]} 2. c4 {[%clk 0:02:53]}  Nc6 {[%clk 0:02:55]} 3. Nf3 {[%clk 0:02:51]}  e6 {[%clk 0:02:55]} 4. a3 {[%clk 0:02:52]}  g6 {[%clk 0:02:56]} 5. Nc3 {[%clk 0:02:51]}  Bg7 {[%clk 0:02:56]} 6. d5 {[%clk 0:02:51]}  exd5 {[%clk 0:02:47]} 7. cxd5 {[%clk 0:02:52]}  Ne7 {[%clk 0:02:48]} 8. d6 {[%clk 0:02:43]}  cxd6 {[%clk 0:02:49]} 9. e4 {[%clk 0:02:43]}  O-O {[%clk 0:02:42]} 10. Bc4 {[%clk 0:02:35]}  b6 {[%clk 0:02:31]} 11. O-O {[%clk 0:02:32]}  Bb7 {[%clk 0:02:31]} 12. Re1 {[%clk 0:02:31]}  Rc8 {[%clk 0:02:30]} 13. Ba2 {[%clk 0:02:27]}  Ne8 {[%clk 0:02:13]} 14. Bd2 {[%clk 0:02:23]}  Nc7 {[%clk 0:02:10]} 15. Rc1 {[%clk 0:02:18]}  d5 {[%clk 0:02:09]} 16. e5 {[%clk 0:01:53]}  Ne6 {[%clk 0:02:05]} 17. Nb5 {[%clk 0:01:41]}  Rxc1 {[%clk 0:02:01]} 18. Qxc1 {[%clk 0:01:41]}  Qb8 {[%clk 0:02:02]} 19. Nd6 {[%clk 0:01:32]}  Bc6 {[%clk 0:01:55]} 20. Bh6 {[%clk 0:01:30]}  Bxh6 {[%clk 0:01:42]} 21. Qxh6 {[%clk 0:01:31]}  Nc8 {[%clk 0:01:43]} 22. Nxc8 {[%clk 0:01:15]}  Qxc8 {[%clk 0:01:44]} 23. h4 {[%clk 0:00:57]}  Qd8 {[%clk 0:01:29]} 24. Ng5 {[%clk 0:00:46]}  Nxg5 {[%clk 0:01:27]} 25. hxg5 {[%clk 0:00:46]}  Qe7 {[%clk 0:01:09]} 26. Re3 {[%clk 0:00:42]}  Qc5 {[%clk 0:01:09]} 27. Rh3 {[%clk 0:00:35]}  Qc1+ {[%clk 0:01:08]} 28. Kh2 {[%clk 0:00:33]}  Qf4+ {[%clk 0:01:09]} 29. Kg1 {[%clk 0:00:26]}  Qc1+ {[%clk 0:01:09]} 30. Kh2 {[%clk 0:00:26]}  Qf4+ {[%clk 0:01:10]} 31. Kg1 {[%clk 0:00:26]}  Qc1+ {[%clk 0:01:10]} 1/2-1/2


[Site "https://www.chess.com"]

[Event "Titled Tuesday Blitz April 4 Early 2023"]
[White "Riff, Vincent"]
[Black "Salman, Pavel"]
[WhiteFideId "617776"]
[BlackFideId "24153753"]
[WhiteElo "2369"]
[BlackElo "2187"]
[Result "1-0"]
[Round "02"]
[TimeControl "180+2"]
[Date "2023.04.04"]
[WhiteClock "0:00:44"]
[BlackClock "0:00:07"]

1. e4 {[%clk 0:02:16]}  c5 {[%clk 0:02:59]} 2. Nf3 {[%clk 0:02:16]}  e6 {[%clk 0:03:00]} 3. d4 {[%clk 0:02:16]}  cxd4 {[%clk 0:03:00]} 4. Nxd4 {[%clk 0:02:17]}  a6 {[%clk 0:03:01]} 5. Nc3 {[%clk 0:02:17]}  Qc7 {[%clk 0:03:01]} 6. Bd3 {[%clk 0:02:17]}  Nc6 {[%clk 0:03:00]} 7. Nxc6 {[%clk 0:02:16]}  dxc6 {[%clk 0:03:00]} 8. O-O {[%clk 0:02:15]}  e5 {[%clk 0:03:01]} 9. Qe2 {[%clk 0:02:16]}  Bc5 {[%clk 0:02:59]} 10. a4 {[%clk 0:02:14]}  Nf6 {[%clk 0:02:59]} 11. h3 {[%clk 0:02:13]}  Be6 {[%clk 0:02:57]} 12. a5 {[%clk 0:02:12]}  O-O {[%clk 0:02:51]} 13. Kh1 {[%clk 0:02:04]}  h6 {[%clk 0:02:48]} 14. f4 {[%clk 0:02:02]}  exf4 {[%clk 0:02:45]} 15. Bxf4 {[%clk 0:02:02]}  Qe7 {[%clk 0:02:42]} 16. Na4 {[%clk 0:02:01]}  Ba7 {[%clk 0:02:39]} 17. Nb6 {[%clk 0:02:00]}  Rad8 {[%clk 0:02:34]} 18. e5 {[%clk 0:01:58]}  Nd5 {[%clk 0:02:26]} 19. Qe4 {[%clk 0:01:58]}  f5 {[%clk 0:02:21]} 20. exf6 {[%clk 0:01:54]}  Nxf6 {[%clk 0:02:20]} 21. Qe2 {[%clk 0:01:50]}  Bxb6 {[%clk 0:01:35]} 22. axb6 {[%clk 0:01:47]}  Qd7 {[%clk 0:01:35]} 23. Rae1 {[%clk 0:01:44]}  Bd5 {[%clk 0:01:32]} 24. Kh2 {[%clk 0:01:38]}  Rde8 {[%clk 0:01:31]} 25. Qd2 {[%clk 0:01:36]}  Rxe1 {[%clk 0:01:29]} 26. Rxe1 {[%clk 0:01:37]}  Re8 {[%clk 0:01:22]} 27. Rd1 {[%clk 0:01:28]}  Qf7 {[%clk 0:01:20]} 28. Re1 {[%clk 0:01:20]}  Be4 {[%clk 0:01:12]} 29. Bf1 {[%clk 0:01:13]}  Qd5 {[%clk 0:00:56]} 30. Qxd5+ {[%clk 0:01:12]}  Nxd5 {[%clk 0:00:51]} 31. Bc7 {[%clk 0:01:09]}  a5 {[%clk 0:00:43]} 32. c4 {[%clk 0:01:02]}  Nf6 {[%clk 0:00:38]} 33. c5 {[%clk 0:00:57]}  Bd5 {[%clk 0:00:31]} 34. Rxe8+ {[%clk 0:00:54]}  Nxe8 {[%clk 0:00:31]} 35. Ba6 {[%clk 0:00:53]}  Nf6 {[%clk 0:00:11]} 36. Bxb7 {[%clk 0:00:51]}  Nd7 {[%clk 0:00:12]} 37. Bc8 {[%clk 0:00:50]}  Nxc5 {[%clk 0:00:10]} 38. Bd6 {[%clk 0:00:43]}  Ne4 {[%clk 0:00:05]} 39. b7 {[%clk 0:00:43]}  Nxd6 {[%clk 0:00:06]} 40. b8=Q {[%clk 0:00:43]}  Nxc8 {[%clk 0:00:05]} 41. Qxc8+ {[%clk 0:00:44]}  Kf7 {[%clk 0:00:06]} 42. Qa6 {[%clk 0:00:43]}  Ke6 {[%clk 0:00:06]} 43. Qxa5 {[%clk 0:00:44]}  Kd6 {[%clk 0:00:06]} 44. Qc3 {[%clk 0:00:44]}  g6 {[%clk 0:00:07]} 45. Qf6+ {[%clk 0:00:44]} 1-0


[Site "https://www.chess.com"]

[Event "Titled Tuesday Blitz April 4 Early 2023"]
[White "Deng, Henry"]
[Black "Bronstein, Or"]
[WhiteFideId "30965454"]
[BlackFideId "2815770"]
[WhiteElo "2460"]
[BlackElo "2356"]
[Result "1-0"]
[Round "02"]
[TimeControl "180+2"]
[Date "2023.04.04"]
[WhiteClock "0:00:31"]
[BlackClock "0:00:11"]

1. e4 {[%clk 0:03:00]}  e6 {[%clk 0:02:55]} 2. d4 {[%clk 0:03:00]}  d5 {[%clk 0:02:55]} 3. Nd2 {[%clk 0:03:01]}  Be7 {[%clk 0:02:53]} 4. Ngf3 {[%clk 0:02:59]}  Nf6 {[%clk 0:02:51]} 5. e5 {[%clk 0:02:58]}  Nfd7 {[%clk 0:02:51]} 6. Bd3 {[%clk 0:02:58]}  c5 {[%clk 0:02:50]} 7. c3 {[%clk 0:02:58]}  Nc6 {[%clk 0:02:50]} 8. O-O {[%clk 0:02:57]}  g5 {[%clk 0:02:49]} 9. Nb1 {[%clk 0:02:57]}  g4 {[%clk 0:02:49]} 10. Ne1 {[%clk 0:02:58]}  cxd4 {[%clk 0:02:48]} 11. cxd4 {[%clk 0:02:58]}  Nxd4 {[%clk 0:02:45]} 12. Qxg4 {[%clk 0:02:57]}  Nc6 {[%clk 0:02:33]} 13. Qg7 {[%clk 0:02:56]}  Rf8 {[%clk 0:02:33]} 14. Nf3 {[%clk 0:02:56]}  Ncxe5 {[%clk 0:02:16]} 15. Nxe5 {[%clk 0:02:55]}  Bf6 {[%clk 0:02:16]} 16. Nxf7 {[%clk 0:02:52]}  Rxf7 {[%clk 0:01:40]} 17. Qg3 {[%clk 0:02:47]}  Rg7 {[%clk 0:01:32]} 18. Qf3 {[%clk 0:02:35]}  Ne5 {[%clk 0:01:30]} 19. Qh5+ {[%clk 0:02:35]}  Ke7 {[%clk 0:01:26]} 20. Bh6 {[%clk 0:02:32]}  Nxd3 {[%clk 0:00:55]} 21. Bxg7 {[%clk 0:02:31]}  Bxg7 {[%clk 0:00:56]} 22. Qxh7 {[%clk 0:02:31]}  Qh8 {[%clk 0:00:56]} 23. Qxd3 {[%clk 0:02:26]}  Bxb2 {[%clk 0:00:56]} 24. Nc3 {[%clk 0:01:26]}  Qxc3 {[%clk 0:00:52]} 25. Qh7+ {[%clk 0:01:26]}  Qg7 {[%clk 0:00:52]} 26. Qh4+ {[%clk 0:01:26]}  Bf6 {[%clk 0:00:49]} 27. Qb4+ {[%clk 0:01:26]}  Kf7 {[%clk 0:00:50]} 28. Rac1 {[%clk 0:01:26]}  Be5 {[%clk 0:00:40]} 29. f4 {[%clk 0:01:25]}  Bd4+ {[%clk 0:00:39]} 30. Kh1 {[%clk 0:01:25]}  Bb6 {[%clk 0:00:38]} 31. Qd6 {[%clk 0:01:23]}  Qf8 {[%clk 0:00:34]} 32. Qe5 {[%clk 0:01:22]}  Qg7 {[%clk 0:00:34]} 33. Qd6 {[%clk 0:01:22]}  Qf6 {[%clk 0:00:28]} 34. f5 {[%clk 0:01:19]}  exf5 {[%clk 0:00:29]} 35. Qxd5+ {[%clk 0:01:19]}  Kg7 {[%clk 0:00:29]} 36. Rf3 {[%clk 0:01:11]}  f4 {[%clk 0:00:28]} 37. Rcf1 {[%clk 0:01:08]}  Qf5 {[%clk 0:00:22]} 38. Qc4 {[%clk 0:01:00]}  Be6 {[%clk 0:00:21]} 39. Qb4 {[%clk 0:00:34]}  Qc5 {[%clk 0:00:16]} 40. Qxf4 {[%clk 0:00:33]}  Rg8 {[%clk 0:00:16]} 41. Rg3+ {[%clk 0:00:32]}  Kh7 {[%clk 0:00:11]} 42. Qh4+ {[%clk 0:00:31]} 1-0


[Site "https://www.chess.com"]

[Event "Titled Tuesday Blitz April 4 Early 2023"]
[White "Levitskiy, Andrey"]
[Black "Novik, Maxim"]
[WhiteFideId "14132885"]
[BlackFideId "4102924"]
[WhiteElo "2341"]
[BlackElo "2287"]
[Result "1-0"]
[Round "02"]
[TimeControl "180+2"]
[Date "2023.04.04"]
[WhiteClock "0:00:07"]
[BlackClock "0:00:01"]

1. e4 {[%clk 0:03:00]}  c6 {[%clk 0:03:00]} 2. Nf3 {[%clk 0:02:56]}  d5 {[%clk 0:03:00]} 3. exd5 {[%clk 0:02:57]}  cxd5 {[%clk 0:03:00]} 4. Ne5 {[%clk 0:02:58]}  Nf6 {[%clk 0:02:57]} 5. d4 {[%clk 0:02:58]}  g6 {[%clk 0:02:57]} 6. Bb5+ {[%clk 0:02:57]}  Nbd7 {[%clk 0:02:54]} 7. O-O {[%clk 0:02:57]}  Bg7 {[%clk 0:02:53]} 8. Re1 {[%clk 0:02:57]}  O-O {[%clk 0:02:52]} 9. Nd2 {[%clk 0:02:52]}  Nxe5 {[%clk 0:02:46]} 10. dxe5 {[%clk 0:02:42]}  Ng4 {[%clk 0:02:45]} 11. Nf3 {[%clk 0:02:28]}  Nxf2 {[%clk 0:02:34]} 12. Kxf2 {[%clk 0:02:27]}  Qb6+ {[%clk 0:02:30]} 13. Nd4 {[%clk 0:02:28]}  f6 {[%clk 0:02:28]} 14. e6 {[%clk 0:02:17]}  f5 {[%clk 0:02:26]} 15. c3 {[%clk 0:01:45]}  Bxd4+ {[%clk 0:01:42]} 16. Qxd4 {[%clk 0:01:45]}  Qxb5 {[%clk 0:01:42]} 17. Re2 {[%clk 0:01:35]}  Rf6 {[%clk 0:01:29]} 18. Bg5 {[%clk 0:01:17]}  Rxe6 {[%clk 0:01:24]} 19. Rxe6 {[%clk 0:01:00]}  Bxe6 {[%clk 0:01:24]} 20. Re1 {[%clk 0:01:00]}  Kf7 {[%clk 0:01:20]} 21. Rxe6 {[%clk 0:00:24]}  Kxe6 {[%clk 0:01:18]} 22. Qe3+ {[%clk 0:00:25]}  Kd7 {[%clk 0:00:54]} 23. Qxe7+ {[%clk 0:00:25]}  Kc6 {[%clk 0:00:53]} 24. Qe6+ {[%clk 0:00:23]}  Kc7 {[%clk 0:00:37]} 25. Bf4+ {[%clk 0:00:21]}  Kd8 {[%clk 0:00:37]} 26. Qf6+ {[%clk 0:00:08]}  Kd7 {[%clk 0:00:32]} 27. Qf7+ {[%clk 0:00:06]}  Kd8 {[%clk 0:00:29]} 28. Qf6+ {[%clk 0:00:05]}  Kd7 {[%clk 0:00:29]} 29. Qf7+ {[%clk 0:00:05]}  Kd8 {[%clk 0:00:24]} 30. Qf8+ {[%clk 0:00:06]}  Kd7 {[%clk 0:00:24]} 31. Qd6+ {[%clk 0:00:05]}  Ke8 {[%clk 0:00:23]} 32. Qe6+ {[%clk 0:00:05]}  Kd8 {[%clk 0:00:22]} 33. Qg8+ {[%clk 0:00:06]}  Qe8 {[%clk 0:00:22]} 34. Qxd5+ {[%clk 0:00:06]}  Qd7 {[%clk 0:00:20]} 35. Qg8+ {[%clk 0:00:06]}  Qe8 {[%clk 0:00:19]} 36. Qd5+ {[%clk 0:00:06]}  Ke7 {[%clk 0:00:17]} 37. Bg5+ {[%clk 0:00:06]}  Kf8 {[%clk 0:00:15]} 38. Bh6+ {[%clk 0:00:06]}  Ke7 {[%clk 0:00:15]} 39. Bg5+ {[%clk 0:00:07]}  Kf8 {[%clk 0:00:14]} 40. Bh6+ {[%clk 0:00:08]}  Ke7 {[%clk 0:00:14]} 41. Qc5+ {[%clk 0:00:08]}  Kf7 {[%clk 0:00:14]} 42. Qc7+ {[%clk 0:00:08]}  Qe7 {[%clk 0:00:13]} 43. Qc4+ {[%clk 0:00:08]}  Ke8 {[%clk 0:00:12]} 44. Qg8+ {[%clk 0:00:08]}  Kd7 {[%clk 0:00:12]} 45. Qxa8 {[%clk 0:00:09]}  Qc5+ {[%clk 0:00:11]} 46. Be3 {[%clk 0:00:10]}  Qb5 {[%clk 0:00:09]} 47. Qxa7 {[%clk 0:00:08]}  Qxb2+ {[%clk 0:00:09]} 48. Kf3 {[%clk 0:00:09]}  Qb5 {[%clk 0:00:03]} 49. Qd4+ {[%clk 0:00:09]}  Ke6 {[%clk 0:00:03]} 50. c4 {[%clk 0:00:08]}  Qc6+ {[%clk 0:00:03]} 51. Kf2 {[%clk 0:00:08]}  Qa6 {[%clk 0:00:02]} 52. Qd5+ {[%clk 0:00:07]}  Ke7 {[%clk 0:00:01]} 53. Bg5+ {[%clk 0:00:07]}  Ke8 {[%clk 0:00:01]} 54. Qd8+ {[%clk 0:00:07]}  Kf7 {[%clk 0:00:01]} 55. Qe7+ {[%clk 0:00:07]}  Kg8 {[%clk 0:00:02]} 56. Qe8+ {[%clk 0:00:08]}  Kg7 {[%clk 0:00:02]} 57. Qe5+ {[%clk 0:00:08]}  Kf7 {[%clk 0:00:01]} 58. Qd5+ {[%clk 0:00:08]}  Kg7 {[%clk 0:00:01]} 59. Be3 {[%clk 0:00:07]} 1-0


[Site "https://www.chess.com"]

[Event "Titled Tuesday Blitz April 4 Early 2023"]
[White "Xu, Daniel"]
[Black "EREBUNI91"]
[WhiteFideId "2627345"]
[WhiteElo "1980"]
[BlackElo "2692"]
[Result "1-0"]
[Round "02"]
[TimeControl "180+2"]
[Date "2023.04.04"]
[WhiteClock "0:00:06"]
[BlackClock "0:00:02"]

1. e4 {[%clk 0:03:00]}  c5 {[%clk 0:02:59]} 2. Nf3 {[%clk 0:02:59]}  e6 {[%clk 0:03:00]} 3. d4 {[%clk 0:02:59]}  cxd4 {[%clk 0:03:01]} 4. Nxd4 {[%clk 0:03:00]}  a6 {[%clk 0:03:01]} 5. Bd3 {[%clk 0:02:59]}  Bc5 {[%clk 0:03:00]} 6. Nb3 {[%clk 0:03:00]}  Be7 {[%clk 0:03:01]} 7. Qg4 {[%clk 0:03:00]}  g6 {[%clk 0:03:01]} 8. Qe2 {[%clk 0:02:59]}  h5 {[%clk 0:03:00]} 9. Nc3 {[%clk 0:02:58]}  b5 {[%clk 0:03:00]} 10. a3 {[%clk 0:02:55]}  Bb7 {[%clk 0:02:58]} 11. Bd2 {[%clk 0:02:45]}  d6 {[%clk 0:02:53]} 12. O-O {[%clk 0:02:39]}  Nf6 {[%clk 0:02:53]} 13. f4 {[%clk 0:02:37]}  Nbd7 {[%clk 0:02:50]} 14. Rae1 {[%clk 0:02:34]}  Qc7 {[%clk 0:02:49]} 15. h3 {[%clk 0:02:25]}  h4 {[%clk 0:02:47]} 16. e5 {[%clk 0:01:53]}  dxe5 {[%clk 0:02:17]} 17. fxe5 {[%clk 0:01:53]}  Nh5 {[%clk 0:02:17]} 18. Qf2 {[%clk 0:01:23]}  Nxe5 {[%clk 0:01:58]} 19. Bxb5+ {[%clk 0:00:56]}  axb5 {[%clk 0:01:53]} 20. Nxb5 {[%clk 0:00:57]}  Qc6 {[%clk 0:00:54]} 21. Rxe5 {[%clk 0:00:43]}  Bf6 {[%clk 0:00:51]} 22. Rc5 {[%clk 0:00:39]}  Qd7 {[%clk 0:00:30]} 23. Nc7+ {[%clk 0:00:31]}  Kf8 {[%clk 0:00:29]} 24. Nxa8 {[%clk 0:00:31]}  Bxa8 {[%clk 0:00:27]} 25. Rxh5 {[%clk 0:00:31]}  Rxh5 {[%clk 0:00:26]} 26. Qxf6 {[%clk 0:00:31]}  Qb7 {[%clk 0:00:20]} 27. Qd8+ {[%clk 0:00:20]}  Kg7 {[%clk 0:00:20]} 28. Bc3+ {[%clk 0:00:20]}  e5 {[%clk 0:00:21]} 29. Qf6+ {[%clk 0:00:19]}  Kg8 {[%clk 0:00:19]} 30. Rf2 {[%clk 0:00:14]}  Rf5 {[%clk 0:00:18]} 31. Qd8+ {[%clk 0:00:13]}  Kg7 {[%clk 0:00:18]} 32. Bxe5+ {[%clk 0:00:10]}  f6 {[%clk 0:00:11]} 33. Bxf6+ {[%clk 0:00:10]}  Kf7 {[%clk 0:00:05]} 34. Qd4 {[%clk 0:00:10]}  Rxf2 {[%clk 0:00:02]} 35. Qxf2 {[%clk 0:00:10]}  Kg8 {[%clk 0:00:01]} 36. Bxh4 {[%clk 0:00:08]}  Qe4 {[%clk 0:00:01]} 37. Nd4 {[%clk 0:00:08]}  Bd5 {[%clk 0:00:01]} 38. Nf3 {[%clk 0:00:09]}  Qf5 {[%clk 0:00:01]} 39. Qe2 {[%clk 0:00:05]}  Be4 {[%clk 0:00:01]} 40. Nd4 {[%clk 0:00:05]}  Qd5 {[%clk 0:00:01]} 41. c3 {[%clk 0:00:05]}  Bf5 {[%clk 0:00:01]} 42. Qe8+ {[%clk 0:00:05]}  Kh7 {[%clk 0:00:01]} 43. Qe7+ {[%clk 0:00:05]}  Kh6 {[%clk 0:00:01]} 44. Bg5+ {[%clk 0:00:05]}  Kh5 {[%clk 0:00:01]} 45. g4+ {[%clk 0:00:06]}  Bxg4 {[%clk 0:00:02]} 46. hxg4+ {[%clk 0:00:07]}  Kxg4 {[%clk 0:00:03]} 47. Qe6+ {[%clk 0:00:07]}  Kg3 {[%clk 0:00:02]} 48. Qxd5 {[%clk 0:00:06]} 1-0


[Site "https://www.chess.com"]

[Event "Titled Tuesday Blitz April 4 Early 2023"]
[White "Perez Gormaz, Matias"]
[Black "Hajiyev, Kanan"]
[WhiteFideId "3406342"]
[BlackFideId "13404148"]
[WhiteElo "2362"]
[BlackElo "2103"]
[Result "1-0"]
[Round "02"]
[TimeControl "180+2"]
[Date "2023.04.04"]
[WhiteClock "0:01:00"]
[BlackClock "0:01:00"]

1. e4 {[%clk 0:02:59]}  c6 {[%clk 0:03:00]} 2. d4 {[%clk 0:02:58]}  d5 {[%clk 0:03:01]} 3. exd5 {[%clk 0:02:59]}  cxd5 {[%clk 0:03:01]} 4. Bd3 {[%clk 0:03:00]}  Nc6 {[%clk 0:03:02]} 5. c3 {[%clk 0:03:00]}  Qc7 {[%clk 0:03:02]} 6. h3 {[%clk 0:02:56]}  Nf6 {[%clk 0:03:02]} 7. Nf3 {[%clk 0:02:50]}  g6 {[%clk 0:03:02]} 8. Qc2 {[%clk 0:02:49]}  Bg7 {[%clk 0:03:02]} 9. O-O {[%clk 0:02:49]}  O-O {[%clk 0:03:02]} 10. Re1 {[%clk 0:02:50]}  Be6 {[%clk 0:03:02]} 11. Bg5 {[%clk 0:02:47]}  Rac8 {[%clk 0:02:56]} 12. Qb3 {[%clk 0:02:34]}  Na5 {[%clk 0:02:49]} 13. Qa4 {[%clk 0:02:20]}  Bf5 {[%clk 0:02:36]} 14. Bxf5 {[%clk 0:02:16]}  gxf5 {[%clk 0:02:37]} 15. Nbd2 {[%clk 0:02:15]}  e6 {[%clk 0:02:34]} 16. Bxf6 {[%clk 0:02:06]}  Bxf6 {[%clk 0:02:33]} 17. Ne5 {[%clk 0:02:00]}  Bxe5 {[%clk 0:02:25]} 18. dxe5 {[%clk 0:01:53]}  a6 {[%clk 0:02:12]} 19. Qh4 {[%clk 0:01:46]}  Qd8 {[%clk 0:01:58]} 20. Qh6 {[%clk 0:01:38]}  Qe7 {[%clk 0:01:38]} 21. Nf3 {[%clk 0:01:36]}  f6 {[%clk 0:01:31]} 22. exf6 {[%clk 0:01:33]}  Rxf6 {[%clk 0:01:32]} 23. Qh4 {[%clk 0:01:28]}  Qg7 {[%clk 0:01:13]} 24. Re2 {[%clk 0:01:17]}  Rg6 {[%clk 0:01:06]} 25. g3 {[%clk 0:01:05]}  Rc4 {[%clk 0:01:04]} 26. Qd8+ {[%clk 0:01:05]}  Kf7 {[%clk 0:01:00]} 27. Ne5+ {[%clk 0:01:00]} 1-0


[Site "https://www.chess.com"]